[Event "9th Sharjah Cup Women 2018"]
[Site "Sharjah"]
[Date "2018.12.17"]
[Round "6"]
[White "Stetsko, Lanita"]
[Black "Samaganova, Alexandra"]
[Result "1-0"]
[ECO "B43"]
[WhiteElo "2194"]
[BlackElo "2038"]
[Annotator "NA"]
[PlyCount "65"]
[EventDate "2018.12.14"]
[EventType "swiss"]
[EventCountry "UAE"]
[SourceTitle "playchess.com"]
[Source "ChessBase"]
[SourceQuality "1"]
[TimeControl "5400+30"]

1. e4 {[%emt 0:00:00]} c5 {[%emt 0:00:00]} 2. Nf3 {[%emt 0:00:00]} e6 {[%emt 0:00:00]} 3. d4 {[%emt 0:00:00]} cxd4 {[%emt 0:00:02]} 4. Nxd4 {[%emt 0:00:00]} a6 {[%emt 0:00:38]} 5. Nc3 {[%emt 0:00:00]} Qc7 {[%emt 0:00:23]} 6. Bd3 {[%emt 0:00:17]} Nf6 {[%emt 0:00:51]} 7. O-O {[%emt 0:00:20]} Be7 {[%emt 0:00:47]} 8. Kh1 {[%emt 0:00:33]} O-O {[%emt 0:05:33]} 9. f4 {[%emt 0:02:17]} d6 {[%emt 0:00:49]} 10. Qe2 {[%emt 0:00:56]} Nbd7 {[%emt 0:02:55]} 11. Bd2 {[%emt 0:00:16]} b5 {[%emt 0:18:58]} 12. Rae1 {[%emt 0:00:34]} b4 {[%emt 0:10:03] LiveBook: 3 Games} 13. Nd1 {[%emt 0:02:24]} Qb6 $11 {[%emt 0:04:33]} 14. Be3 {[%emt 0:09:52]} Nc5 {[%emt 0:11:05]} 15. e5 {[%emt 0:03:55]} Nd5 {[%emt 0:02:54]} 16. Bg1 {[%emt 0:03:48]} g6 {[%emt 0:06:53]} 17. f5 {[%emt 0:13:42]} dxe5 {[%emt 0:06:37]} 18. fxe6 {[%emt 0:04:34]} Bxe6 {[%emt 0:06:25]} 19. Nxe6 {[%emt 0:01:29]} Qxe6 {[%emt 0:05:06]} 20. Bc4 {[%emt 0:00:36]} Nd7 {[%emt 0:08:54]} 21. Ne3 {[%emt 0:00:58]} N7b6 {[%emt 0:01:20]} 22. Nxd5 {[%emt 0:00:24]} Nxd5 {[%emt 0:00:17]} 23. Qxe5 {[%emt 0:00:21]} Rad8 {[%emt 0:04:19]} 24. Qg3 {[%emt 0:01:00]} Bd6 {[%emt 0:02:06]} 25. Qg5 {[%emt 0:00:21]} Be7 {[%emt 0:00:31]} 26. Rxe6 {[%emt 0:01:11]} Bxg5 {[%emt 0:00:15]} 27. Re5 {[%emt 0:00:04]} Bf6 {[%emt 0:00:43]} 28. Rxd5 {[%emt 0:00:09]} Rxd5 {[%emt 0:00:27]} 29. Bxd5 {[%emt 0:00:01]} Bxb2 {[%emt 0:00:10]} 30. Bb3 {[%emt 0:00:32]} Kg7 {[%emt 0:00:44]} 31. Bc5 {[%emt 0:00:06]} Rb8 {[%emt 0:00:18]} 32. Rxf7+ {[%emt 0:00:06]} Kh8 {[%emt 0:00:20]} 33. Rf8+ {[%emt 0:00:41]} 1-0

[Event "9th Sharjah Cup Women 2018"]
[Site "Sharjah"]
[Date "2018.12.17"]
[Round "6"]
[White "Babayan, Armine"]
[Black "Alattar, Ghayda M."]
[Result "1-0"]
[ECO "B07"]
[WhiteElo "2189"]
[BlackElo "1944"]
[Annotator "NA"]
[PlyCount "47"]
[EventDate "2018.12.14"]
[EventType "swiss"]
[EventCountry "UAE"]
[SourceTitle "playchess.com"]
[Source "ChessBase"]
[SourceQuality "1"]
[TimeControl "5400+30"]

1. e4 {[%emt 0:00:00]} d6 {[%emt 0:00:00]} 2. d4 {[%emt 0:00:00]} Nf6 {[%emt 0:00:00]} 3. Nc3 {[%emt 0:00:01]} g6 {[%emt 0:00:00]} 4. Be2 {[%emt 0:02:41]} Bg7 {[%emt 0:00:12]} 5. Be3 {[%emt 0:00:12]} c6 {[%emt 0:01:20]} 6. Qd2 {[%emt 0:02:11]} Nbd7 {[%emt 0:06:51]} 7. g4 {[%emt 0:07:05]} h5 {[%emt 0:08:58]} 8. g5 {[%emt 0:08:26]} Nh7 {[%emt 0:01:47]} (8... Ng4 $11) 9. f4 {[%emt 0:03:50]} b5 {[%emt 0:03:13]} 10. Nf3 {[%emt 0:02:07]} Nb6 {[%emt 0:01:05]} 11. Nh4 {[%emt 0:09:52]} Nc4 {[%emt 0:07:25]} 12. Bxc4 {[%emt 0:00:11]} bxc4 {[%emt 0:00:04]} 13. f5 $18 {[%emt 0:01:12]} Nf8 {[%emt 0:12:09]} 14. O-O {[%emt 0:07:12]} Rg8 {[%emt 0:07:13]} 15. Qf2 {[%emt 0:01:44]} f6 {[%emt 0:02:54]} 16. fxg6 {[%emt 0:02:04]} Bh3 {[%emt 0:01:33]} 17. e5 {[%emt 0:04:31]} Nd7 {[%emt 0:12:43]} 18. exf6 {[%emt 0:02:49]} exf6 {[%emt 0:00:25]} 19. Rfe1 {[%emt 0:01:01]} Qc7 {[%emt 0:01:55]} 20. gxf6 {[%emt 0:00:23]} O-O-O {[%emt 0:03:36]} 21. fxg7 {[%emt 0:00:13]} Rxg7 {[%emt 0:00:02]} 22. Bh6 {[%emt 0:05:19]} Rgg8 {[%emt 0:01:00]} 23. Qg3 {[%emt 0:00:10]} Bg4 {[%emt 0:01:44]} 24. h3 {[%emt 0:00:12]} 1-0

[Event "9th Sharjah Cup Women 2018"]
[Site "Sharjah"]
[Date "2018.12.17"]
[Round "6"]
[White "Berke, Ana"]
[Black "Rayan, Mohammad Ali Hassan"]
[Result "1-0"]
[ECO "B01"]
[WhiteElo "2151"]
[BlackElo "1267"]
[Annotator "NA"]
[PlyCount "75"]
[EventDate "2018.12.14"]
[EventType "swiss"]
[EventCountry "UAE"]
[SourceTitle "playchess.com"]
[Source "ChessBase"]
[SourceQuality "1"]
[TimeControl "5400+30"]

1. e4 {[%emt 0:00:00]} d5 {[%emt 0:00:00]} 2. exd5 {[%emt 0:00:00]} Qxd5 {[%emt 0:00:00]} 3. Nc3 {[%emt 0:00:00]} Qd6 {[%emt 0:00:00]} 4. Nf3 {[%emt 0:00:36]} Nf6 {[%emt 0:00:00]} 5. d4 {[%emt 0:00:16]} c6 {[%emt 0:00:00]} 6. g3 {[%emt 0:00:06] B01: Scandinavian Defence} (6. h3 Nbd7 7. Bd3 g6 8. O-O Bg7 9. Re1 O-O 10. Qe2 e6 11. Bg5 b6 12. Rad1 Bb7 13. Ne5 c5 14. dxc5 Qxe5 15. Qxe5 Nxe5 16. Rxe5 {1-0 (90) Guseinov,G (2645)-Carlsen,M (2832) chess.com INT 2017}) 6... Bf5 {[%emt 0:00:00]} 7. Bg2 {[%emt 0:00:16]} e6 {[%emt 0:00:00]} 8. O-O {[%emt 0:00:12] LiveBook: 57 Games} Qd8 {[%emt 0:00:36]} 9. Re1 {[%emt 0:00:25]} Be7 $146 {[%emt 0:00:55]} ({Predecessor:} 9... Bd6 10. Bg5 O-O 11. Qd2 Nbd7 12. Ne5 Nb6 13. Qe2 Re8 14. Rad1 h6 15. Be3 {1-0 (56) Fowler,D (1496)-Hopkinson,G (976) Weymouth 2008}) 10. a4 {[%emt 0:03:22]} a5 {[%emt 0:00:54]} 11. Bg5 {[%emt 0:00:46]} O-O {[%emt 0:01:03]} 12. Qd2 {[%emt 0:01:01]} Nbd7 {[%emt 0:03:48]} 13. Rad1 {[%emt 0:01:25]} Bb4 {[%emt 0:01:27]} 14. h3 {[%emt 0:03:28]} h6 {[%emt 0:03:40]} 15. Bf4 {[%emt 0:01:26]} Nd5 {[%emt 0:02:43]} 16. Rc1 {[%emt 0:16:24]} N7f6 {[%emt 0:01:56]} (16... N7b6 $19 {has better winning chances.} 17. Ra1 g5) 17. Ne5 $17 {[%emt 0:03:50]} Bh7 {[%emt 0:13:14]} 18. g4 {[%emt 0:02:02]} Rc8 {[%emt 0:11:01]} 19. Nd3 {[%emt 0:03:50]} Bxd3 {[%emt 0:04:45]} 20. cxd3 {[%emt 0:04:15]} Nb6 {[%emt 0:20:52]} 21. Be5 {[%emt 0:10:10]} Nxa4 {[%emt 0:01:57]} 22. g5 {[%emt 0:02:14]} hxg5 {[%emt 0:02:27]} 23. Qxg5 {[%emt 0:00:44]} Nxb2 {[%emt 0:03:29]} 24. Be4 {[%emt 0:06:03]} Be7 {[%emt 0:02:43]} 25. Qd2 {[%emt 0:02:57]} Nxe4 {[%emt 0:00:56]} 26. Rxe4 {[%emt 0:04:23]} Nxd3 {[%emt 0:05:53]} 27. Qxd3 {[%emt 0:00:44]} Bf6 {[%emt 0:02:14]} 28. Qg3 {[%emt 0:00:54]} Bxe5 {[%emt 0:00:59]} 29. dxe5 {[%emt 0:00:08]} Qd2 {[%emt 0:06:33]} 30. Rd1 {[%emt 0:00:14]} Qh6 {[%emt 0:00:35]} 31. Rh4 {[%emt 0:00:53]} Qg6 {[%emt 0:00:23]} 32. Rg4 {[%emt 0:00:10]} Qh6 {[%emt 0:01:06]} 33. Ne4 {[%emt 0:00:40]} Rfd8 {[%emt 0:00:39]} 34. Rxd8+ {[%emt 0:01:40]} Rxd8 {[%emt 0:00:02]} 35. Nf6+ {[%emt 0:00:36]} Kf8 {[%emt 0:00:08]} 36. Qa3+ {[%emt 0:00:22]} c5 {[%emt 0:01:16]} 37. Qxc5+ {[%emt 0:00:06]} Rd6 {[%emt 0:00:10]} 38. Qxd6# {[%emt 0:00:08]} 1-0

[Event "9th Sharjah Cup Women 2018"]
[Site "Sharjah"]
[Date "2018.12.17"]
[Round "6"]
[White "Hallaeva, Bahar"]
[Black "Kulkarni Bhakti"]
[Result "0-1"]
[ECO "C02"]
[WhiteElo "2133"]
[BlackElo "2283"]
[Annotator "NA"]
[PlyCount "96"]
[EventDate "2018.12.14"]
[EventType "swiss"]
[EventCountry "UAE"]
[SourceTitle "playchess.com"]
[Source "ChessBase"]
[SourceQuality "1"]
[TimeControl "5400+30"]

1. e4 {[%emt 0:00:00]} e6 {[%emt 0:00:00]} 2. d4 {[%emt 0:00:00]} d5 {[%emt 0:00:00]} 3. e5 {[%emt 0:00:00]} c5 {[%emt 0:00:00]} 4. c3 {[%emt 0:00:00]} Nc6 {[%emt 0:00:02]} 5. Nf3 {[%emt 0:00:00]} Bd7 {[%emt 0:00:06]} 6. a3 {[%emt 0:01:17]} f6 {[%emt 0:00:14]} 7. Bd3 {[%emt 0:04:29]} fxe5 {[%emt 0:00:22]} 8. dxe5 {[%emt 0:02:07]} (8. Nxe5 $5 {[%cal Rd1h5]} Nf6 9. Nxd7 Qxd7 10. Be3 $11) 8... Qc7 {[%emt 0:00:52] C02: French: Advance Variation} 9. Qe2 {[%emt 0:05:42] LiveBook: 11 Games} O-O-O {[%emt 0:01:30]} 10. O-O {[%emt 0:04:34]} h6 {[%emt 0:02:04]} (10... c4 $5 {[%cal Rc4d3]} 11. Bc2 Kb8 $11) 11. b4 {[%emt 0:03:26]} c4 $146 {[%emt 0:00:51]} ({Predecessor:} 11... g5 12. Re1 Be8 13. Nbd2 Bh5 14. bxc5 Bxc5 15. Nb3 Bb6 16. c4 {½-½ (67) Graham,N (2372)-Szpisjak,S (2246) Saint Paul 2000}) 12. Bc2 {[%emt 0:02:47]} g5 {[%emt 0:01:04]} 13. b5 {[%emt 0:04:16]} Na5 $1 {[%emt 0:02:25]} 14. Nd4 {[%emt 0:00:18]} Bg7 {[%emt 0:03:36]} 15. Re1 {[%emt 0:03:32]} Ne7 {[%emt 0:03:58]} 16. a4 {[%emt 0:00:47]} Kb8 {[%emt 0:01:12]} 17. Nd2 {[%emt 0:06:21]} Ka8 {[%emt 0:06:58]} 18. Ba3 {[%emt 0:08:16]} Nc8 {[%emt 0:01:30]} 19. Nf1 {[%emt 0:01:13]} h5 {[%emt 0:05:15]} 20. Bc1 {[%emt 0:08:30]} g4 {[%emt 0:01:26]} 21. Bg5 {[%emt 0:00:12]} Rdg8 {[%emt 0:03:03]} 22. Qe3 {[%emt 0:03:09]} Qc5 {[%emt 0:03:04]} 23. Qf4 $14 {[%emt 0:04:05]} Nb3 {[%emt 0:09:06]} 24. Bxb3 {[%emt 0:02:47]} cxb3 {[%emt 0:00:37]} 25. Qd2 {[%emt 0:01:44]} Nb6 {[%emt 0:04:35]} 26. Nxb3 {[%emt 0:01:49]} Qc7 {[%emt 0:00:07]} 27. Qd4 {[%emt 0:03:17]} Nc4 {[%emt 0:01:14]} 28. Bf4 {[%emt 0:00:43]} Rf8 {[%emt 0:00:56]} 29. g3 {[%emt 0:02:50]} Bh6 {[%emt 0:04:40]} 30. Bxh6 {[%emt 0:01:03]} Rxh6 {[%emt 0:00:04]} 31. Nbd2 {[%emt 0:01:29]} Rc8 {[%emt 0:03:44]} 32. Nxc4 {[%emt 0:01:09]} Qxc4 {[%emt 0:00:06]} 33. Qd2 {[%emt 0:01:27]} Rh7 {[%emt 0:01:01]} 34. Ra3 {[%emt 0:03:40]} Rf7 {[%emt 0:05:49]} 35. Ne3 {[%emt 0:03:08]} Qc5 {[%emt 0:02:04]} 36. Rb3 {[%emt 0:00:24]} Rf3 {[%emt 0:02:04]} 37. Qd4 {[%emt 0:01:28]} Qe7 {[%emt 0:01:19]} 38. Rb2 {[%emt 0:01:56]} Be8 {[%emt 0:00:36]} 39. Rb4 {[%emt 0:01:53]} Bg6 {[%emt 0:00:55]} 40. Rc1 {[%emt 0:03:14]} Be4 {[%emt 0:00:24]} 41. Qd2 {[%emt 0:00:41]} Rcf8 {[%emt 0:01:15]} 42. Rf1 {[%emt 0:00:52]} h4 {[%emt 0:02:12]} 43. Rxe4 {[%emt 0:04:20]} dxe4 {[%emt 0:00:19]} 44. Qd4 {[%emt 0:02:04]} hxg3 {[%emt 0:01:15]} 45. hxg3 {[%emt 0:00:36]} Qf7 {[%emt 0:00:50]} 46. Rd1 {[%emt 0:00:53]} Rxg3+ {[%emt 0:00:22]} 47. Ng2 {[%emt 0:01:13]} Rd3 {[%emt 0:00:12]} 48. Rxd3 {[%emt 0:01:03]} exd3 {[%emt 0:00:05]} 0-1

[Event "9th Sharjah Cup Women 2018"]
[Site "Sharjah"]
[Date "2018.12.17"]
[Round "6"]
[White "Ovezdurdiyeva, Jemal"]
[Black "Al-Hammadi, Maryam Hussein"]
[Result "1-0"]
[ECO "A84"]
[WhiteElo "2114"]
[BlackElo "1354"]
[Annotator "NA"]
[PlyCount "50"]
[EventDate "2018.12.14"]
[EventType "swiss"]
[EventCountry "UAE"]
[SourceTitle "playchess.com"]
[Source "ChessBase"]
[SourceQuality "1"]
[TimeControl "5400+30"]

1. d4 {[%emt 0:00:00]} e6 {[%emt 0:00:00]} 2. c4 {[%emt 0:00:00]} f5 {[%emt 0:00:00]} 3. Nc3 {[%emt 0:00:00]} Bb4 {[%emt 0:00:40]} 4. Qb3 {[%emt 0:09:11]} Bxc3+ {[%emt 0:01:08]} 5. bxc3 {[%emt 0:00:14]} Nf6 {[%emt 0:00:28]} 6. g3 {[%emt 0:01:22]} O-O {[%emt 0:09:19]} 7. Bg2 {[%emt 0:00:04]} Ne4 {[%emt 0:00:24]} 8. Nf3 {[%emt 0:02:48]} b6 {[%emt 0:01:39]} 9. O-O {[%emt 0:04:40]} Bb7 {[%emt 0:00:57]} 10. Ne5 {[%emt 0:04:56]} d6 {[%emt 0:01:41]} 11. Nd3 {[%emt 0:00:15]} Qc8 {[%emt 0:01:52]} 12. Nf4 {[%emt 0:07:15]} Re8 {[%emt 0:04:15]} 13. d5 {[%emt 0:02:28]} Nc5 {[%emt 0:04:46]} 14. Qc2 {[%emt 0:00:53]} e5 $15 {[%emt 0:00:16]} 15. Nh5 {[%emt 0:03:13]} Rf8 {[%emt 0:05:19]} 16. f4 {[%emt 0:04:10]} g6 {[%emt 0:06:57]} 17. fxe5 {[%emt 0:00:10]} dxe5 {[%emt 0:00:18]} 18. Bh6 {[%emt 0:01:04]} Rf7 {[%emt 0:00:14]} 19. e4 {[%emt 0:06:02]} Nba6 {[%emt 0:10:17]} 20. Ng7 {[%emt 0:04:11]} Rxg7 {[%emt 0:14:26]} 21. Bxg7 {[%emt 0:00:06]} Kxg7 {[%emt 0:00:03]} 22. exf5 {[%emt 0:00:10]} gxf5 {[%emt 0:00:08]} 23. Rxf5 {[%emt 0:01:20]} Qe8 {[%emt 0:01:24]} 24. Raf1 {[%emt 0:01:30]} Nd7 {[%emt 0:00:21]} 25. Qf2 {[%emt 0:00:35]} Nab8 1-0

[Event "9th Sharjah Cup Women 2018"]
[Site "Sharjah"]
[Date "2018.12.17"]
[Round "6"]
[White "Asatryan, Sona"]
[Black "Khezrian, Nooralzahra"]
[Result "0-1"]
[ECO "C61"]
[WhiteElo "2089"]
[BlackElo "1317"]
[Annotator "NA"]
[PlyCount "79"]
[EventDate "2018.12.14"]
[EventType "swiss"]
[EventCountry "UAE"]
[SourceTitle "playchess.com"]
[Source "ChessBase"]
[SourceQuality "1"]
[TimeControl "5400+30"]

1. e4 {[%emt 0:00:00]} e5 {[%emt 0:00:07]} 2. Nf3 {[%emt 0:00:00]} Nc6 {[%emt 0:00:09]} 3. Bb5 {[%emt 0:00:00]} Nd4 {[%emt 0:00:23]} 4. Bc4 {[%emt 0:01:53]} Bc5 {[%emt 0:00:53]} 5. c3 {[%emt 0:01:57]} Nxf3+ {[%emt 0:02:28]} 6. Qxf3 {[%emt 0:00:05]} Qf6 {[%emt 0:03:35]} 7. Qxf6 {[%emt 0:04:22]} Nxf6 {[%emt 0:00:26]} 8. d3 {[%emt 0:03:53]} h6 {[%emt 0:07:03]} 9. a4 {[%emt 0:07:10]} a5 {[%emt 0:01:24]} 10. Na3 {[%emt 0:03:04]} c6 {[%emt 0:08:12]} 11. O-O $11 {[%emt 0:03:32]} (11. f4 $5 {[%cal Rf4e5]}) 11... d5 {[%emt 0:10:27]} 12. exd5 {[%emt 0:02:28]} Nxd5 {[%emt 0:01:28]} 13. Re1 {[%emt 0:01:29]} f6 {[%emt 0:00:55]} 14. d4 {[%emt 0:05:38]} Bd6 {[%emt 0:02:14]} 15. dxe5 {[%emt 0:05:39]} fxe5 {[%emt 0:07:34]} 16. Bxd5 {[%emt 0:06:17]} cxd5 {[%emt 0:02:10]} 17. Bf4 {[%emt 0:00:52]} Bxa3 {[%emt 0:07:04]} 18. Rxa3 {[%emt 0:13:36]} e4 {[%emt 0:03:34]} 19. Rb3 {[%emt 0:03:48]} O-O {[%emt 0:03:16]} 20. Bg3 {[%emt 0:00:20]} Rf7 {[%emt 0:03:06]} 21. Rb5 {[%emt 0:03:23]} Be6 {[%emt 0:07:39]} 22. f3 {[%emt 0:03:13]} Ra6 {[%emt 0:04:14]} 23. fxe4 {[%emt 0:02:36]} dxe4 {[%emt 0:00:48]} 24. Rxe4 {[%emt 0:01:04]} Bf5 {[%emt 0:04:45]} 25. Rf4 {[%emt 0:01:40]} g6 {[%emt 0:04:59]} 26. Bf2 {[%emt 0:01:36]} Rd6 {[%emt 0:02:50]} 27. Bd4 {[%emt 0:01:26]} Re7 {[%emt 0:02:11]} 28. Rxa5 {[%emt 0:01:05]} Re1+ {[%emt 0:00:50]} 29. Rf1 {[%emt 0:00:34]} Re2 {[%emt 0:00:26]} 30. Ra8+ {[%emt 0:04:29]} Kf7 {[%emt 0:00:34]} 31. g4 {[%emt 0:00:28]} Rxb2 {[%emt 0:01:50]} 32. gxf5 {[%emt 0:00:22]} g5 {[%emt 0:00:39]} 33. Rh8 {[%emt 0:02:21]} Ra6 {[%emt 0:00:48]} 34. Rh7+ {[%emt 0:01:16]} Kg8 {[%emt 0:00:29]} 35. Rg7+ {[%emt 0:00:16]} Kf8 {[%emt 0:00:07]} 36. f6 {[%emt 0:00:32]} Rxa4 {[%emt 0:01:40]} 37. f7 {[%emt 0:00:43]} Rxd4 {[%emt 0:00:21]} 38. cxd4 {[%emt 0:00:50]} Kxg7 {[%emt 0:00:13]} 39. f8=Q+ {[%emt 0:00:09]} Kg6 {[%emt 0:00:10]} 40. Qf7# 0-1

[Event "9th Sharjah Cup Women 2018"]
[Site "Sharjah"]
[Date "2018.12.17"]
[Round "6"]
[White "Patil, Mitali"]
[Black "Nguyen, Thi Mai Hung"]
[Result "0-1"]
[ECO "B22"]
[WhiteElo "2081"]
[BlackElo "2280"]
[Annotator "NA"]
[PlyCount "74"]
[EventDate "2018.12.14"]
[EventType "swiss"]
[EventCountry "UAE"]
[SourceTitle "playchess.com"]
[Source "ChessBase"]
[SourceQuality "1"]
[TimeControl "5400+30"]

1. e4 {[%emt 0:00:00]} c5 {[%emt 0:00:00]} 2. c3 {[%emt 0:00:00]} g6 {[%emt 0:00:00]} 3. d4 {[%emt 0:00:00]} cxd4 {[%emt 0:00:00]} 4. cxd4 {[%emt 0:00:00]} d5 {[%emt 0:00:01]} 5. e5 {[%emt 0:00:00]} Bg7 {[%emt 0:00:25]} 6. Nf3 {[%emt 0:00:00]} Nc6 {[%emt 0:00:47] LiveBook: 225 Games} 7. Nbd2 {[%emt 0:04:04]} Qb6 {[%emt 0:05:49]} 8. Nb3 {[%emt 0:02:25]} f6 {[%emt 0:07:07]} 9. Be2 {[%emt 0:07:20]} Bg4 {[%emt 0:02:44]} (9... a5 $11 {remains equal.}) 10. O-O {[%emt 0:09:07]} Nh6 {[%emt 0:14:09]} 11. h3 {[%emt 0:13:43]} Bc8 {[%emt 0:04:25]} 12. Bf4 {[%emt 0:07:07]} O-O {[%emt 0:00:35]} 13. Qd2 {[%emt 0:02:32]} Nf7 {[%emt 0:03:16]} 14. exf6 {[%emt 0:01:58]} exf6 {[%emt 0:00:14]} 15. Rac1 {[%emt 0:01:54]} Be6 $16 {[%emt 0:10:26]} 16. Nc5 {[%emt 0:06:02]} Rae8 {[%emt 0:06:23]} 17. Rc3 {[%emt 0:02:51]} Bc8 {[%emt 0:01:34]} 18. Rfc1 {[%emt 0:04:53]} Re7 {[%emt 0:06:16]} 19. Bd1 {[%emt 0:02:36]} Rfe8 {[%emt 0:03:14]} 20. a3 {[%emt 0:04:48]} g5 {[%emt 0:13:05]} 21. Be3 {[%emt 0:07:32]} h6 {[%emt 0:01:07]} 22. h4 {[%emt 0:14:15]} Qd8 {[%emt 0:10:23]} 23. hxg5 {[%emt 0:06:06]} fxg5 {[%emt 0:00:33]} 24. Ba4 {[%emt 0:00:58]} Nd6 {[%emt 0:02:12]} 25. Nxb7 {[%emt 0:01:13]} Bxb7 {[%emt 0:00:39]} 26. Bxc6 {[%emt 0:00:07]} Ne4 {[%emt 0:00:28]} 27. Qd3 {[%emt 0:00:26]} Nxc3 {[%emt 0:01:55]} 28. Bxe8 {[%emt 0:00:05]} Na2 {[%emt 0:00:20]} 29. Ra1 {[%emt 0:00:53]} Qxe8 {[%emt 0:00:21]} 30. Rxa2 {[%emt 0:00:08]} g4 {[%emt 0:01:46]} 31. Nh4 {[%emt 0:00:56]} Re6 {[%emt 0:01:10]} 32. b4 {[%emt 0:00:59]} Ba6 {[%emt 0:01:36]} 33. Qf5 {[%emt 0:00:48]} Bc4 {[%emt 0:00:04]} 34. Rc2 {[%emt 0:00:29]} g3 {[%emt 0:00:47]} 35. Nf3 {[%emt 0:00:31]} Re4 {[%emt 0:02:15]} 36. Bf4 {[%emt 0:00:35]} Re1+ {[%emt 0:00:11]} 37. Nxe1 {[%emt 0:00:14]} Qxe1# {[%emt 0:00:04] Bc1} 0-1

[Event "9th Sharjah Cup Women 2018"]
[Site "Sharjah"]
[Date "2018.12.17"]
[Round "6"]
[White "Soyunlu, Narmin"]
[Black "Socko, Monika"]
[Result "0-1"]
[ECO "E20"]
[WhiteElo "2078"]
[BlackElo "2458"]
[Annotator "ChessBase"]
[PlyCount "100"]
[EventDate "2018.12.14"]
[EventType "swiss"]
[EventCountry "UAE"]
[SourceTitle "playchess.com"]
[Source "ChessBase"]
[SourceQuality "1"]
[TimeControl "5400+30"]

1. d4 {[%emt 0:00:00]} Nf6 {[%emt 0:00:00]} 2. c4 {[%emt 0:00:00]} e6 {[%emt 0:00:00]} 3. Nc3 {[%emt 0:00:00]} Bb4 {[%emt 0:00:32]} 4. g3 {[%emt 0:00:00]} O-O {[%emt 0:01:18]} 5. Bg2 {[%emt 0:00:05]} d5 {[%emt 0:00:17]} 6. Nf3 {[%emt 0:00:11]} dxc4 {[%emt 0:01:15]} 7. O-O {[%emt 0:00:12]} Nc6 {[%emt 0:03:26]} 8. a3 {[%emt 0:00:06]} Be7 {[%emt 0:05:12]} 9. e4 {[%emt 0:02:24]} Na5 {[%emt 0:03:49]} 10. Be3 {[%emt 0:08:16]} Rb8 {[%emt 0:05:17]} 11. Qe2 {[%emt 0:05:37]} b5 {[%emt 0:06:19]} 12. Ne5 {[%emt 0:02:42]} Bb7 {[%emt 0:04:14]} 13. Nxb5 {[%emt 0:23:57]} Bxe4 {[%emt 0:02:16]} 14. Bxe4 {[%emt 0:01:53]} Nxe4 {[%emt 0:00:18]} 15. Nxa7 {[%emt 0:09:25]} Qd5 {[%emt 0:03:15]} 16. f3 {[%emt 0:21:17]} Nf6 {[%emt 0:03:26]} 17. Rac1 {[%emt 0:03:07]} Rb3 {[%emt 0:15:12]} 18. Bd2 {[%emt 0:11:20]} Rxb2 {[%emt 0:17:24]} 19. Qe3 {[%emt 0:00:35]} Rxd2 {[%emt 0:10:47]} 20. Qxd2 {[%emt 0:00:02]} Ra8 {[%emt 0:00:12]} 21. Qb2 {[%emt 0:03:18]} c3 {[%emt 0:00:59]} 22. Qxc3 {[%emt 0:01:16]} Rxa7 {[%emt 0:00:04]} 23. Rb1 {[%emt 0:01:23]} Ra8 {[%emt 0:01:28]} 24. Rfd1 {[%emt 0:02:58]} Qd8 {[%emt 0:02:57]} 25. Rb5 {[%emt 0:00:54]} Nd5 {[%emt 0:00:24]} 26. Qc1 {[%emt 0:00:35]} c6 {[%emt 0:00:46]} 27. Nxc6 {[%emt 0:00:53]} Nxc6 {[%emt 0:00:06]} 28. Qxc6 {[%emt 0:00:03]} Rc8 {[%emt 0:00:20]} 29. Qb7 {[%emt 0:00:58]} Nc3 {[%emt 0:00:25]} 30. Rd3 {[%emt 0:00:56]} Nxb5 {[%emt 0:00:26]} 31. Qxb5 {[%emt 0:00:06]} Qc7 {[%emt 0:00:37]} 32. Qb2 {[%emt 0:00:44]} Qc1+ {[%emt 0:01:21]} 33. Qxc1 {[%emt 0:00:02]} Rxc1+ {[%emt 0:00:03]} 34. Kg2 {[%emt 0:00:21]} Rc2+ {[%emt 0:00:02]} 35. Kh3 {[%emt 0:00:12]} Ra2 {[%emt 0:00:12]} 36. d5 {[%emt 0:00:24]} exd5 {[%emt 0:00:18]} 37. Rxd5 {[%emt 0:00:11]} Rxa3 {[%emt 0:00:05]} 38. Kg2 {[%emt 0:02:02]} Ra2+ {[%emt 0:00:08]} 39. Kh3 {[%emt 0:00:11]} g6 {[%emt 0:00:08]} 40. Rd7 {[%emt 0:00:18]} Bc5 {[%emt 0:00:21]} 41. Rd1 {[%emt 0:00:13]} Kg7 {[%emt 0:00:22]} 42. Rc1 {[%emt 0:00:13]} Ba7 {[%emt 0:00:24]} 43. f4 {[%emt 0:01:30]} h5 {[%emt 0:00:57]} 44. Rd1 {[%emt 0:00:30]} Kh6 {[%emt 0:00:53]} 45. Rc1 {[%emt 0:00:30]} f6 {[%emt 0:00:15]} 46. Rd1 {[%emt 0:00:17]} Rc2 {[%emt 0:00:20]} 47. Re1 {[%emt 0:00:20]} Bc5 {[%emt 0:00:19]} 48. Rh1 {[%emt 0:00:37]} g5 {[%emt 0:01:26]} 49. fxg5+ {[%emt 0:00:07]} fxg5 {[%emt 0:00:06]} 50. g4 {[%emt 0:00:20]} Bd6 {[%emt 0:00:27]} 0-1

[Event "9th Sharjah Cup Women 2018"]
[Site "Sharjah"]
[Date "2018.12.17"]
[Round "6"]
[White "Kejzar, Petra"]
[Black "Abdulla, Khayala"]
[Result "0-1"]
[ECO "A30"]
[WhiteElo "2062"]
[BlackElo "2190"]
[Annotator "NA"]
[PlyCount "62"]
[EventDate "2018.12.14"]
[EventType "swiss"]
[EventCountry "UAE"]
[SourceTitle "playchess.com"]
[Source "ChessBase"]
[SourceQuality "1"]
[TimeControl "5400+30"]

1. c4 {[%emt 0:00:00]} c5 {[%emt 0:00:12]} 2. Nf3 {[%emt 0:00:00]} Nf6 {[%emt 0:00:10]} 3. g3 {[%emt 0:00:09]} b6 {[%emt 0:00:41]} 4. Bg2 {[%emt 0:00:26]} Bb7 {[%emt 0:00:10]} 5. O-O {[%emt 0:03:29]} e6 {[%emt 0:00:59]} 6. Nc3 {[%emt 0:01:11]} Be7 {[%emt 0:02:13]} 7. b3 {[%emt 0:00:07]} d5 {[%emt 0:03:56]} 8. cxd5 {[%emt 0:00:51]} exd5 {[%emt 0:02:15]} 9. d4 {[%emt 0:00:54]} Nc6 {[%emt 0:00:53]} 10. Bb2 {[%emt 0:04:21]} O-O {[%emt 0:01:16]} 11. Rc1 {[%emt 0:03:43]} Re8 {[%emt 0:04:45]} 12. dxc5 {[%emt 0:04:58] LiveBook: 4 Games} bxc5 {[%emt 0:02:06]} 13. Na4 {[%emt 0:04:15]} Ba6 {[%emt 0:10:06] [#]} 14. Re1 $16 {[%emt 0:03:22]} c4 {[%emt 0:10:18]} 15. Nd2 {[%emt 0:06:59]} Na5 {[%emt 0:06:59]} 16. bxc4 {[%emt 0:12:29]} Nxc4 {[%emt 0:00:35]} 17. Nxc4 {[%emt 0:00:13]} Bxc4 {[%emt 0:00:42]} 18. Rxc4 {[%emt 0:02:06]} dxc4 {[%emt 0:00:06]} 19. Bxa8 {[%emt 0:00:09]} Qxa8 {[%emt 0:01:53]} 20. Qc2 {[%emt 0:04:50]} Rc8 {[%emt 0:02:53]} 21. e4 {[%emt 0:03:09]} Qc6 {[%emt 0:03:18]} 22. Bd4 {[%emt 0:06:14]} Rd8 {[%emt 0:04:16]} 23. Bc3 {[%emt 0:07:46]} h5 {[%emt 0:16:25]} 24. Nb2 {[%emt 0:07:53]} Rc8 {[%emt 0:02:44]} 25. Bd4 {[%emt 0:04:09]} Bb4 {[%emt 0:07:07]} 26. Re2 {[%emt 0:00:58]} a5 {[%emt 0:00:47]} 27. Nd1 {[%emt 0:04:52]} h4 {[%emt 0:01:25]} 28. Kg2 {[%emt 0:04:49]} h3+ {[%emt 0:00:31]} 29. Kh1 {[%emt 0:00:37]} Rd8 {[%emt 0:01:30]} 30. Bb2 {[%emt 0:01:48]} Nxe4 {[%emt 0:01:58]} 31. Kg1 {[%emt 0:02:41]} Nc3 {[%emt 0:01:47]} 0-1